bitfinex/quotes_ETHUSD_20250508
["timestamp","ask_amount","ask_price","bid_price","bid_amount"]
[1746746455200,0.638,2187.2,2186.8,3.285]
[1746746455423,4.57241654,2187.1,2186.8,3.285]
[1746746455935,4.5724836,2187.0,2186.8,3.285]
[1746746456111,4.57237976,2187.1,2186.8,3.285]
[1746746456936,4.57215317,2187.2,2186.8,3.3307239]
[1746746457412,4.57194342,2187.3,2186.8,5.5193179]
[1746746457611,4.57194342,2187.3,2186.8,10.09211795]
[1746746457814,4.57214535,2187.2,2186.8,5.5193179]
[1746746458036,0.638,2187.4,2186.8,10.09212494]
[1746746458204,5.20975381,2187.4,2187.0,4.57242508]
[1746746458532,4.57187433,2187.3,2187.0,0.0457201]
[1746746458835,5.20979125,2187.4,2187.0,0.0457201]
[1746746459235,5.20979125,2187.4,2187.1,6.11]
[1746746459403,4.57205559,2187.2,2187.1,6.11]
[1746746459937,8.21005559,2187.2,2186.4,6.11]
[1746746460149,4.57351932,2186.5,2186.4,6.11]
[1746746460350,4.5737285,2186.4,2186.3,19.751]
[1746746460507,4.5737285,2186.4,2186.3,16.466]
[1746746460847,4.5737285,2186.4,2186.2,3.05034729]
[1746746461144,5.21137252,2186.6,2186.2,9.19818908]
[1746746461346,4.57317406,2186.7,2186.3,4.57392398]
[1746746461545,4.57317406,2186.7,2186.3,0.04573308]
[1746746461704,4.5733222,2186.6,2186.3,0.04573308]
[1746746461903,0.638,2186.9,2186.2,4.62408202]
[1746746462133,0.638,2186.9,2186.2,3.05034729]
[1746746462134,4.5739377,2186.3,2186.2,3.05034729]
[1746746462309,4.57374325,2186.4,2186.2,9.63134729]
[1746746462505,0.638,2186.9,2186.3,6.11]
[1746746462713,4.57297565,2186.8,2186.3,12.691]
[1746746463208,4.57319697,2186.7,2186.3,12.691]
[1746746463562,4.5737285,2186.4,2186.3,6.11]
[1746746463853,5.2117285,2186.4,2186.3,6.11]
[1746746464699,4.57456541,2186.0,2185.9,6.11]
[1746746464906,5.21187887,2186.4,2185.9,10.68466532]
[1746746465106,4.57360134,2186.5,2186.0,4.57451728]
[1746746465342,4.57360134,2186.5,2186.1,11.75276843]
[1746746465551,4.57414692,2186.2,2186.1,6.11]
[1746746465851,4.57477469,2185.9,2185.8,6.11]
[1746746466011,4.57540263,2185.6,2185.5,6.11]
[1746746466411,4.57509339,2185.8,2185.5,6.11]
[1746746466865,0.08982535,2185.7,2185.5,6.15575426]
[1746746467185,4.66501865,2185.7,2185.6,3.04845738]
[1746746467321,4.5751933,2185.7,2185.6,3.04845738]
[1746746467656,4.66513408,2185.7,2185.6,3.04845738]
[1746746468125,0.08994078,2185.7,2185.6,3.04845738]
[1746746468470,4.57540263,2185.6,2185.5,6.11]
[1746746468657,4.57540263,2185.6,2185.4,25.863]
[1746746468822,4.66746876,2185.6,2185.4,25.863]
[1746746469023,4.57561198,2185.5,2185.4,19.753]
[1746746469222,4.66693622,2185.5,2185.4,19.753]
[1746746469623,4.66693622,2185.5,2185.4,16.467]
[1746746469842,4.57603075,2185.3,2185.2,6.11]
[1746746470038,4.57624016,2185.2,2185.1,6.11]
[1746746470471,4.66658664,2185.2,2185.1,6.11]
[1746746473631,4.5768685,2184.9,2184.8,6.11]
[1746746473873,4.5768685,2184.9,2184.3,16.472]
[1746746473874,4.57762251,2184.6,2184.4,0.8101]
[1746746474179,5.21471635,2185.0,2184.5,6.11]
[1746746474480,4.57714562,2184.8,2184.5,6.11]
[1746746474625,4.57658939,2185.1,2184.6,7.17708288]
[1746746474851,4.5755382,2185.6,2185.1,4.57635039]
[1746746475093,4.57529628,2185.7,2185.2,12.02305]
[1746746475399,0.638,2185.5,2184.9,3.293]
[1746746475568,4.57665903,2185.0,2184.9,3.293]
[1746746475765,4.57647103,2185.1,2184.9,4.02946]
[1746746475766,4.57650395,2185.1,2184.9,4.02946]
[1746746476080,4.57653719,2185.1,2184.9,4.02946]
[1746746476286,0.638,2185.5,2184.9,4.02946]
[1746746476599,4.57624325,2185.2,2185.0,0.04576076]
[1746746476759,4.57582135,2185.4,2184.9,4.02946]
[1746746476965,4.5768685,2184.9,2184.8,4.0706]
[1746746477163,4.57674236,2185.0,2184.8,7.3636]
[1746746477372,4.5768685,2184.9,2184.8,7.3636]
[1746746477549,4.5768685,2184.9,2184.8,6.592]
[1746746477965,4.57749702,2184.6,2184.5,0.82846844]
[1746746478187,4.57749702,2184.6,2184.5,6.591]
[1746746478349,4.57791613,2184.4,2184.3,17.2275]
[1746746478555,4.57791613,2184.4,2184.3,24.80627745]
[1746746478791,4.57791613,2184.4,2184.3,16.472]
[1746746479089,4.57791613,2184.4,2184.3,23.065]
[1746746479462,4.57791613,2184.4,2184.3,16.472]
[1746746483199,4.57791613,2184.4,2183.7,3.63873157]
[1746746483200,4.57875457,2184.0,2183.9,4.1079]
[1746746483385,4.57875457,2184.0,2183.9,3.294]
[1746746483908,4.57938361,2183.7,2183.6,3.294]
[1746746484106,5.21695498,2184.0,2183.3,16.482]
[1746746484406,4.57985792,2183.5,2183.3,16.482]
[1746746484604,4.58022259,2183.3,2183.2,3.294]
[1746746487406,4.57987114,2183.5,2183.2,3.294]
[1746746487583,4.57969205,2183.6,2183.3,0.7634]
[1746746487912,4.57980306,2183.5,2183.4,0.4103198]
[1746746488125,4.57971533,2183.6,2183.4,0.4103198]
[1746746488478,4.57971533,2183.6,2183.2,3.33979804]
[1746746488479,4.57983347,2183.5,2183.2,3.294]
[1746746488805,4.58002344,2183.4,2183.2,3.294]
[1746746489305,4.58001282,2183.4,2183.3,6.11]
[1746746491108,4.58085203,2183.0,2182.9,6.11]
[1746746491283,4.58106189,2182.9,2182.8,6.11]
[1746746491611,3.0,2183.5,2182.8,6.11]
[1746746491803,3.0,2183.5,2182.9,6.9366]
[1746746492113,3.0,2183.5,2183.0,1.20216096]
[1746746492690,4.57860205,2184.1,2183.2,4.58031755]
[1746746492890,4.579176,2183.8,2183.3,12.682]
[1746746493093,5.217176,2183.8,2183.3,12.682]
[1746746493294,0.638,2183.8,2183.3,12.682]
[1746746493532,0.638,2183.8,2183.4,1.2682]
[1746746495018,5.21720097,2183.8,2183.4,1.2682]
[1746746495224,4.5796104,2183.6,2183.3,9.406]
[1746746495538,4.5796104,2183.6,2183.3,3.296]
[1746746495821,0.638,2183.8,2183.2,6.11]
[1746746496124,3.0,2183.7,2183.2,10.59071802]
[1746746496298,7.57949825,2183.7,2183.2,10.59071802]
[1746746496887,0.638,2183.8,2183.2,6.11]
[1746746497198,4.57968819,2183.6,2183.2,6.11]
[1746746497920,5.21726347,2183.8,2183.2,10.69043087]
[1746746498223,8.21731384,2183.8,2183.2,6.11]
[1746746498422,5.21725632,2183.8,2183.2,6.11]
[1746746498627,4.57946955,2183.7,2183.2,6.11]
[1746746498822,6.49688055,2183.8,2183.2,6.11]
[1746746498823,5.21733173,2183.8,2183.2,6.11]
[1746746498990,3.0,2183.7,2183.2,10.69039435]
[1746746500017,3.638,2183.8,2183.3,4.58021268]
[1746746500230,5.21660573,2184.1,2183.5,4.57971066]
[1746746500435,0.638,2184.1,2183.6,9.406]
[1746746500644,0.638,2184.1,2183.7,6.11]
[1746746501594,4.57781786,2184.5,2183.9,0.8268]
[1746746501794,0.638,2184.6,2184.1,4.57840679]
[1746746502091,3.0,2184.6,2184.2,10.43684068]
[1746746502296,4.57740938,2184.7,2184.2,9.368]
[1746746502694,4.57737565,2184.7,2184.2,9.368]
[1746746503017,4.5774278,2184.7,2184.2,9.368]
[1746746503335,0.638,2184.9,2184.2,6.11]
[1746746503503,4.57959333,2183.6,2183.5,17.2956]
[1746746503692,0.638,2184.6,2183.3,1.13871836]
[1746746504040,1.67268932,2185.4,2183.3,1.13871836]
[1746746504041,4.57707799,2184.8,2184.0,0.8171]
[1746746504195,4.5782498,2184.3,2184.1,6.543]
[1746746504636,4.5768685,2184.9,2184.0,0.8171]
[1746746504922,4.57817616,2184.3,2184.0,0.8171]
[1746746505127,4.57802479,2184.4,2184.0,0.8171]
[1746746505426,0.638,2184.5,2184.0,0.8171]
[1746746505737,3.63837644,2185.1,2184.0,6.63514194]
[1746746505738,8.21537228,2184.7,2184.0,6.63514194]
[1746746506049,4.14981433,2185.2,2184.2,4.57815198]
[1746746506050,5.21502736,2184.9,2184.2,4.57815198]
[1746746506337,5.21502339,2184.9,2184.0,2.35044066]
[1746746506489,5.21487167,2184.9,2184.3,4.57803943]
[1746746506689,5.21487167,2184.9,2184.4,4.57782309]
[1746746506690,0.638,2184.9,2184.4,4.57782309]
[1746746506909,0.638,2184.9,2184.4,11.92392309]
[1746746507106,5.2145586,2185.1,2184.5,4.57764608]
[1746746507354,5.21461535,2185.1,2184.4,11.92391233]
[1746746507537,4.57667645,2185.0,2184.5,1.19239123]
[1746746507694,4.57730629,2184.7,2184.3,0.7929]
[1746746507893,4.5772002,2184.8,2184.3,0.7929]
[1746746508134,3.638,2185.1,2184.3,0.7929]
[1746746508135,4.57729232,2184.7,2184.3,0.7929]
[1746746508507,4.57741246,2184.7,2184.3,0.7929]
[1746746508925,8.21448526,2185.1,2184.3,0.7929]
[1746746509127,4.57729194,2184.7,2184.3,0.7929]
[1746746509441,7.57698093,2184.9,2184.3,0.7929]
[1746746509634,7.57698093,2184.9,2184.3,5.37089122]
[1746746510652,4.57708447,2184.8,2184.3,5.37089122]
[1746746510945,0.82144853,2185.0,2184.3,0.7929]
[1746746511113,0.638,2185.1,2184.3,5.37099792]
[1746746511114,4.57719628,2184.8,2184.3,5.37099792]
[1746746511313,4.57731797,2184.7,2184.3,0.7929]
[1746746511525,4.57719628,2184.8,2184.3,0.7929]
[1746746511726,4.57732605,2184.7,2184.3,0.7929]
[1746746512653,0.91545223,2184.7,2184.2,6.535]
[1746746512947,4.57805229,2184.4,2184.2,6.535]
[1746746513152,4.57812571,2184.3,2184.2,3.257]
[1746746513362,4.57866518,2184.1,2183.9,6.11]
[1746746513655,4.57844297,2184.2,2183.9,6.11]
[1746746513812,4.57875457,2184.0,2183.9,6.11]
[1746746514217,4.57896423,2183.9,2183.8,3.05034729]
[1746746514865,4.57917391,2183.8,2183.7,6.11]
[1746746515557,6.13201582,2184.2,2183.7,6.11]
[1746746515558,4.57903304,2183.9,2183.7,6.11]
[1746746516165,4.57917391,2183.8,2183.7,6.11]
[1746746516671,4.57980306,2183.5,2183.4,3.05034729]
[1746746517571,4.58001282,2183.4,2183.3,6.11]
[1746746517732,4.58001282,2183.4,2183.2,3.05034729]
[1746746517733,4.58001282,2183.4,2183.2,9.16034729]
[1746746518274,0.638,2183.7,2183.2,9.16034729]
[1746746518448,4.57988975,2183.5,2183.3,1.32351473]
[1746746518654,4.57988975,2183.5,2183.2,9.16034729]
[1746746520066,4.57988975,2183.5,2183.2,6.11]
[1746746520653,4.58001474,2183.4,2183.2,6.11]
[1746746520974,4.58022259,2183.3,2183.2,6.11]
[1746746523179,4.58043239,2183.2,2183.1,3.257]
[1746746523950,4.58106189,2182.9,2182.8,0.8115]
[1746746524257,4.58106189,2182.9,2182.7,6.11]
[1746746524258,4.58127176,2182.8,2182.7,6.11]
[1746746525175,4.58127176,2182.8,2182.6,3.257]
[1746746525176,4.58148165,2182.7,2182.6,3.257]
[1746746525591,4.58136031,2182.8,2182.6,3.257]
[1746746525754,4.58137347,2182.8,2182.6,3.257]
[1746746525949,4.58148165,2182.7,2182.6,3.257]
[1746746526453,4.5813794,2182.8,2182.6,3.257]
[1746746526652,4.58148165,2182.7,2182.6,3.257]
[1746746526878,4.5813794,2182.8,2182.6,3.257]
[1746746527082,4.58117676,2182.9,2182.6,4.49873473]
[1746746527281,4.58056915,2183.2,2182.7,6.11]
[1746746527483,4.58101107,2183.0,2182.9,3.65790348]
[1746746527651,4.58101107,2183.0,2182.9,12.61]
[1746746527851,4.58075737,2183.1,2182.9,12.61]
[1746746528186,4.58085203,2183.0,2182.9,12.61]
[1746746529170,4.58075737,2183.1,2182.9,13.17182712]
[1746746529358,4.58075737,2183.1,2182.9,9.92982712]
[1746746529559,4.58054851,2183.2,2182.9,9.92982712]
[1746746529768,4.58030743,2183.3,2182.9,13.63353698]
[1746746529964,4.58030743,2183.3,2183.0,2.22800212]
[1746746530687,4.57991124,2183.5,2183.2,3.65790348]
[1746746530885,4.58001282,2183.4,2183.3,9.348]
[1746746532186,4.57969481,2183.6,2183.3,9.348]
[1746746532187,9.15992624,2183.5,2183.3,9.348]
[1746746532492,4.58001282,2183.4,2183.3,9.348]
[1746746532694,4.58001282,2183.4,2183.3,13.96943035]
[1746746534583,4.58001282,2183.4,2183.3,12.591]
[1746746534761,4.57971647,2183.6,2183.3,12.591]
[1746746535688,4.5799802,2183.5,2183.3,12.591]
[1746746535858,4.58001282,2183.4,2183.3,12.591]
[1746746538595,4.57992659,2183.5,2183.3,12.591]
[1746746538889,4.5797216,2183.6,2183.5,0.8151]
[1746746540089,4.57834616,2184.2,2183.5,10.58300348]
[1746746540293,4.57888587,2184.0,2183.6,6.9130866]
[1746746540471,4.57938361,2183.7,2183.6,6.8673]
[1746746540793,0.638,2184.5,2183.7,5.33662155]
[1746746540794,4.57770656,2184.5,2183.7,5.33662155]
[1746746540995,4.57848462,2184.2,2183.8,6.1557852]
[1746746541161,4.57824072,2184.3,2183.8,6.1557852]
[1746746541488,3.0,2184.5,2183.8,6.1557852]
[1746746541489,4.57876169,2184.0,2183.8,6.11]
[1746746541695,4.57876169,2184.0,2183.9,6.11]
[1746746541895,4.57863406,2184.1,2183.9,6.11]
[1746746542063,4.57863406,2184.1,2183.9,6.80130871]
[1746746542688,4.57875457,2184.0,2183.9,6.80130871]
[1746746542889,4.57875457,2184.0,2183.9,6.11]
[1746746544260,4.57864233,2184.1,2183.9,6.11]
[1746746544457,4.57875457,2184.0,2183.9,6.11]
[1746746546278,4.57896423,2183.9,2183.8,9.324]
[1746746547707,4.57896423,2183.9,2183.8,3.214]
[1746746547997,4.57959333,2183.6,2183.5,12.563]
[1746746551372,4.57883091,2184.0,2183.5,17.49234839]
[1746746551594,4.57883091,2184.0,2183.7,0.8008]
[1746746551795,5.2157232,2184.5,2183.8,0.04578706]
[1746746551998,4.57854875,2184.1,2183.9,6.11]
[1746746552210,4.57854875,2184.1,2184.0,6.452]
[1746746553294,4.57854875,2184.1,2183.6,3.65790348]
[1746746553295,4.58001282,2183.4,2183.3,3.05034729]
[1746746553610,10.76892207,2183.4,2183.3,3.05034729]
[1746746553773,13.21959055,2183.4,2183.3,3.05034729]
[1746746554189,18.03959055,2183.4,2183.3,3.05034729]
[1746746554387,10.6686813,2183.4,2183.3,3.05034729]
[1746746554588,17.1926813,2183.4,2183.3,3.05034729]
[1746746555109,22.0126813,2183.4,2183.3,3.05034729]
[1746746556203,4.58257905,2182.2,2181.9,4.31159253]
[1746746556386,4.58257905,2182.2,2182.0,1.21379544]
[1746746557007,4.58274139,2182.1,2182.0,1.21379544]
[1746746557224,4.58295142,2182.0,2181.9,1.03059253]
[1746746557509,4.58262955,2182.2,2181.9,1.03059253]
[1746746557722,4.58277452,2182.1,2181.9,1.03059253]
[1746746559926,5.21957426,2182.7,2181.9,1.03059253]
[1746746560113,4.58232837,2182.3,2182.0,0.80496638]
[1746746561215,4.58254021,2182.2,2182.0,0.80496638]
[1746746561719,4.58236981,2182.3,2182.0,0.80496638]
[1746746562221,4.58221624,2182.4,2182.0,0.80496638]
[1746746562596,4.5823231,2182.3,2182.0,0.80496638]
[1746746562922,4.5823231,2182.3,2182.1,0.54934624]
[1746746564107,4.58085203,2183.0,2182.2,10.60582553]
[1746746564416,4.58211143,2182.4,2182.3,12.614]
[1746746564790,4.58202116,2182.5,2182.3,12.614]
[1746746564991,4.58202116,2182.5,2182.3,14.00954462]
[1746746565219,4.58177725,2182.6,2182.3,14.00954462]
[1746746565718,4.58130174,2182.8,2182.3,14.00954462]
[1746746566020,4.58211143,2182.4,2182.3,14.00954462]
[1746746566626,4.58211143,2182.4,2182.3,12.614]
[1746746566808,4.58191811,2182.5,2182.3,12.614]
[1746746567001,4.58211143,2182.4,2182.3,12.614]
[1746746567725,4.58211143,2182.4,2182.3,9.365]
[1746746568627,4.58199032,2182.5,2182.3,9.365]
[1746746568809,4.58199032,2182.5,2182.3,10.76004462]
[1746746569130,4.58181219,2182.6,2182.3,10.76004462]
[1746746570210,4.58181219,2182.6,2182.4,6.1558168]
[1746746571336,4.58190148,2182.5,2182.4,6.11]
[1746746576230,4.5823214,2182.3,2182.2,6.11]
[1746746577357,4.5823214,2182.3,2181.8,6.11]
[1746746577358,4.58316146,2181.9,2181.8,6.11]
[1746746577536,4.58379171,2181.6,2181.5,9.331]
[1746746578733,4.58400183,2181.5,2181.4,6.11]
[1746746579049,4.58371822,2181.7,2181.4,8.64639668]
[1746746579726,0.638,2182.3,2181.5,6.11]
[1746746579978,4.58307199,2182.0,2181.7,0.8144]
[1746746580128,4.58307199,2182.0,2181.7,4.0354]
[1746746580330,4.58241762,2182.3,2181.8,0.86650101]
[1746746580651,5.21971539,2182.6,2181.8,5.49558191]
[1746746580845,4.58211143,2182.4,2181.9,6.11]
[1746746581046,4.58295142,2182.0,2181.9,6.11]
[1746746581255,4.58295142,2182.0,2181.7,0.8144]
[1746746581256,4.58316146,2181.9,2181.8,6.11]
[1746746583445,4.58316146,2181.9,2181.8,7.04788317]
[1746746583851,4.58304035,2182.0,2181.8,7.04788317]
[1746746584180,4.58316146,2181.9,2181.8,6.11]
[1746746585236,4.58337152,2181.8,2181.7,6.11]
[1746746587372,4.58325906,2181.9,2181.7,6.11]
[1746746588281,4.58287066,2182.1,2181.8,6.11]
[1746746588444,4.58300688,2182.0,2181.8,6.15582889]
[1746746588641,4.58284094,2182.1,2181.9,0.61558289]
[1746746588835,4.58295142,2182.0,2181.9,0.61558289]
[1746746589280,4.58285516,2182.1,2181.9,0.61558289]
[1746746590375,4.58226156,2182.4,2182.0,0.808]
[1746746590585,4.58253139,2182.2,2182.0,10.12]
[1746746590770,4.58266126,2182.2,2182.0,10.12]
[1746746590943,4.58266126,2182.2,2182.1,1.39915829]
[1746746591666,4.58236895,2182.3,2182.1,1.39915829]
[1746746592257,4.5822101,2182.4,2182.1,1.39915829]
[1746746593271,4.5822101,2182.4,2182.1,1.44498114]
[1746746593841,4.58242424,2182.3,2182.1,1.44498114]
[1746746594049,4.58242424,2182.3,2182.1,1.39915829]
[1746746594378,4.58242424,2182.3,2182.2,6.11]
[1746746595188,0.638,2182.6,2182.2,7.26191583]
[1746746595189,4.5818805,2182.6,2182.2,7.26191583]
[1746746595381,4.58114857,2182.9,2182.4,4.49090348]
[1746746595551,4.58114857,2182.9,2182.5,11.03161792]
[1746746595875,4.58093497,2183.0,2182.6,10.69165567]
[1746746596183,4.5804432,2183.2,2182.8,5.40329395]
[1746746596386,4.58073005,2183.1,2182.9,6.11]
[1746746596565,4.58085203,2183.0,2182.9,6.11]
[1746746597280,4.58050658,2183.2,2182.9,6.11]
[1746746597459,5.21760648,2183.6,2182.9,7.9752944]
[1746746597785,4.58049458,2183.2,2182.9,7.92948924]
[1746746598488,4.58068086,2183.1,2182.9,7.92948924]
[1746746599187,4.58054355,2183.2,2182.9,7.92948924]
[1746746599657,4.58066568,2183.1,2182.9,7.92948924]
[1746746599993,4.58055341,2183.2,2183.0,6.11]
[1746746600280,4.57982951,2183.5,2183.1,6.11]
[1746746600281,4.58009838,2183.4,2183.1,6.11]
[1746746600475,4.58033646,2183.3,2183.1,6.11]
[1746746601184,4.57922386,2183.8,2183.2,0.7994]
[1746746601185,4.57985853,2183.5,2183.2,0.7994]
[1746746601354,4.58019132,2183.4,2183.1,6.9094]
[1746746601553,4.58019132,2183.4,2183.2,6.11]
[1746746602188,4.58022259,2183.3,2183.2,6.11]
[1746746603390,4.58014214,2183.4,2183.2,6.11]
[1746746603682,4.58022259,2183.3,2183.2,6.11]
[1746746604053,4.58009006,2183.4,2183.2,6.11]
[1746746604254,4.58009006,2183.4,2183.2,7.3612]
[1746746604456,4.57993,2183.5,2183.2,7.3612]
[1746746604653,4.58004394,2183.4,2183.2,7.3612]
[1746746604853,4.58019421,2183.4,2183.2,7.3612]
[1746746605089,4.58022259,2183.3,2183.2,6.11]
[1746746606603,4.5806422,2183.1,2182.9,6.11]
[1746746606806,5.21885203,2183.0,2182.9,6.11]
[1746746607195,4.58169156,2182.6,2182.5,3.05034729]
[1746746607576,5.21969156,2182.6,2182.5,3.05034729]
[1746746609907,6.23378869,2182.6,2182.5,3.05034729]
[1746746611272,9.23378869,2182.6,2182.5,3.05034729]
[1746746611981,5.21969156,2182.6,2182.5,3.05034729]
[1746746612183,4.58154217,2182.7,2182.5,3.05034729]
[1746746612383,4.58158483,2182.7,2182.5,6.25134729]
[1746746612706,5.21849045,2183.2,2182.6,0.7723]
[1746746612908,4.58138227,2182.8,2182.6,2.25296728]
[1746746613213,4.58085815,2183.0,2182.6,2.29878045]
[1746746613514,4.5811722,2182.9,2182.6,2.25296728]
[1746746613712,4.58072901,2183.1,2182.6,2.25296728]
[1746746613713,4.58097642,2183.0,2182.6,2.25296728]
[1746746613910,4.58023066,2183.3,2182.6,2.25296728]
[1746746613911,4.58116013,2182.9,2182.6,2.25296728]
[1746746614082,4.58115178,2182.9,2182.7,1.53632181]
[1746746614280,4.58093979,2183.0,2182.7,1.53632181]
[1746746614281,4.58096099,2183.0,2182.7,1.53632181]
[1746746614518,4.58095549,2183.0,2182.7,1.53632181]
[1746746614810,4.58107493,2182.9,2182.7,1.53632181]
[1746746616007,4.58127176,2182.8,2182.7,1.53632181]
[1746746616212,4.58044452,2183.2,2182.7,1.53632181]
[1746746616509,4.58119871,2182.9,2182.7,1.53632181]
[1746746616724,4.58094748,2183.0,2182.8,0.23086218]
[1746746616884,4.58101402,2183.0,2182.8,0.23086218]
[1746746617087,4.58106189,2182.9,2182.8,0.23086218]
[1746746617284,4.58097622,2183.0,2182.8,0.23086218]
[1746746617703,4.58106189,2182.9,2182.8,0.23086218]
[1746746618015,4.58106189,2182.9,2182.7,1.53632181]
[1746746618198,4.58094761,2183.0,2182.7,1.53632181]
[1746746618408,4.58094761,2183.0,2182.8,6.11]
[1746746619115,4.58106189,2182.9,2182.8,6.11]
[1746746620616,4.58098152,2183.0,2182.8,6.11]
[1746746620820,4.5805248,2183.2,2182.8,6.11]
[1746746620821,4.58072542,2183.1,2182.8,7.41460291]
[1746746621417,4.58055167,2183.2,2182.9,6.11]
[1746746621619,4.58055167,2183.2,2183.0,3.2]
[1746746622622,4.58030317,2183.3,2183.0,3.2]
[1746746622922,4.58056406,2183.2,2183.0,3.2]
[1746746623230,3.58056406,2183.2,2183.0,4.26146029]
[1746746623595,5.21771277,2183.6,2183.1,11.45536882]
[1746746623825,0.638,2183.9,2183.2,6.11]
[1746746623995,4.58022259,2183.3,2183.2,6.11]
[1746746624516,4.58010836,2183.4,2183.2,6.11]
[1746746624692,5.21810836,2183.4,2183.2,6.11]
[1746746624898,4.58022259,2183.3,2183.2,6.11]
[1746746626815,4.58022259,2183.3,2182.9,6.11]
[1746746626816,4.58085203,2183.0,2182.9,6.11]
[1746746627020,4.58106189,2182.9,2182.8,6.11]
[1746746629230,4.58091559,2183.0,2182.8,6.11]
[1746746629398,4.58075223,2183.1,2182.8,6.11]
[1746746629732,4.58013199,2183.4,2183.0,4.58083209]
[1746746629930,4.58013199,2183.4,2183.0,4.62663424]
[1746746630094,4.58025183,2183.3,2183.0,0.04580215]
[1746746630296,4.58025183,2183.3,2183.1,6.11]
[1746746630527,4.58043239,2183.2,2183.1,6.11]
[1746746631609,4.58127176,2182.8,2182.7,3.199]
[1746746631808,4.58148165,2182.7,2182.6,6.11]
[1746746633420,4.58148165,2182.7,2182.4,3.198]
[1746746633421,4.58190148,2182.5,2182.4,3.198]
[1746746634323,4.58190148,2182.5,2182.3,3.199]
[1746746634528,5.21910999,2182.9,2182.4,1.41243473]
[1746746634529,4.58159035,2182.7,2182.4,1.41243473]
[1746746634826,4.58159035,2182.7,2182.4,0.7875]
[1746746635035,4.5817122,2182.6,2182.4,0.7875]
[1746746635326,4.58158447,2182.7,2182.4,0.7875]
[1746746635625,4.58118851,2182.9,2182.4,0.83331968]
[1746746635828,4.58118851,2182.9,2182.5,4.58184418]
[1746746636009,4.58118851,2182.9,2182.5,1.63944031]
[1746746636206,4.58116253,2182.9,2182.5,6.22125618]
[1746746636601,4.58129622,2182.8,2182.5,1.63944031]
[1746746636814,4.58129622,2182.8,2182.4,0.83331968]
[1746746637030,0.638,2183.4,2182.4,4.49122316]
[1746746637227,0.638,2183.4,2182.5,0.7773]
[1746746637402,4.58098274,2183.0,2182.6,0.04580713]
[1746746637604,4.58082254,2183.1,2182.6,4.62737457]
[1746746637802,4.58096555,2183.0,2182.5,0.7773]
[1746746637997,4.58117391,2182.9,2182.6,1.70273]
[1746746638213,4.58127911,2182.8,2182.6,1.70273]
[1746746638415,4.58127911,2182.8,2182.5,0.7773]
[1746746638701,4.5815775,2182.7,2182.5,0.7773]
[1746746640505,4.5813439,2182.8,2182.5,0.7773]
[1746746640705,4.58102945,2183.0,2182.6,0.04581337]
[1746746640905,4.5810744,2182.9,2182.6,0.04581337]
[1746746641125,0.638,2183.2,2182.6,0.99869377]
[1746746641326,0.638,2183.2,2182.5,0.7773]
[1746746641327,0.638,2183.3,2182.5,0.7773]
[1746746641530,4.58032807,2183.3,2182.8,0.8026]
[1746746641831,0.638,2183.6,2182.9,3.24380441]
[1746746642035,4.5806422,2183.1,2183.0,6.11]
[1746746642439,3.0,2183.8,2183.1,0.7637]
[1746746642733,4.57928702,2183.8,2183.3,4.580148]
[1746746642933,4.57928702,2183.8,2183.4,0.80949415]
[1746746643125,4.57942692,2183.7,2183.4,4.00649415]
[1746746643326,4.57914448,2183.9,2183.4,8.58646848]
[1746746643734,4.57914448,2183.9,2183.4,4.00649415]
[1746746643948,0.638,2184.1,2183.4,4.00649415]
[1746746643949,4.57873852,2184.1,2183.5,7.59424942]
[1746746644115,5.21594613,2184.4,2183.6,4.57948434]
[1746746644314,4.57885222,2184.0,2183.7,6.11]
[1746746644845,4.57899167,2183.9,2183.7,6.11]
[1746746645145,4.57886374,2184.0,2183.8,6.11]
[1746746645342,4.57788625,2184.5,2184.0,4.57865232]
[1746746645515,4.57792889,2184.4,2184.1,6.11]
[1746746645714,4.57826336,2184.3,2184.1,6.11]
[1746746645913,4.57833531,2184.2,2184.1,6.11]
[1746746646124,4.57801554,2184.4,2184.1,6.11]
[1746746646328,4.57778873,2184.5,2184.1,7.43721]
[1746746646716,4.57778873,2184.5,2184.1,7.48298881]
[1746746647444,4.57793098,2184.4,2184.1,7.48298881]
[1746746647647,4.57833531,2184.2,2184.1,6.11]
[1746746647852,4.57833531,2184.2,2184.1,9.306]
[1746746650150,4.57787876,2184.5,2184.1,9.306]
[1746746650331,4.57791472,2184.5,2184.1,9.35178069]
[1746746650527,4.57791472,2184.5,2184.3,0.7815]
[1746746651145,4.57833531,2184.2,2184.1,10.0875]
[1746746652152,4.57800693,2184.4,2184.1,10.0875]
[1746746652356,4.57800693,2184.4,2184.1,10.13328008]
[1746746652550,4.57783594,2184.5,2184.1,10.13328008]
[1746746652847,9.15574076,2184.5,2184.1,10.13328008]
[1746746653054,4.57793734,2184.4,2184.1,10.13328008]
[1746746653362,4.57790009,2184.5,2184.1,12.38215876]
[1746746653649,4.57790009,2184.5,2184.1,12.33637868]
[1746746653843,4.57833531,2184.2,2184.1,6.11]
[1746746654048,4.57833531,2184.2,2184.1,9.305]
[1746746654246,4.57875457,2184.0,2183.9,6.11]
[1746746654449,4.57896423,2183.9,2183.8,12.503]
[1746746656551,4.57896423,2183.9,2183.8,6.11]
[1746746656763,4.58001282,2183.4,2183.3,6.11]
[1746746659674,4.57988393,2183.5,2183.3,6.11]
[1746746660463,4.57988393,2183.5,2183.4,6.11]
[1746746663769,4.58022259,2183.3,2183.2,3.194]
[1746746663975,4.5806422,2183.1,2183.0,25.803]
[1746746664157,4.58055304,2183.2,2183.0,28.78402]
[1746746664747,4.58055659,2183.2,2183.0,28.78402]
[1746746665961,4.58055659,2183.2,2183.0,25.59002]
[1746746666164,5.21786634,2183.5,2183.0,25.59002]
[1746746666381,4.58018598,2183.4,2183.1,3.3365008]
[1746746666583,4.58033046,2183.3,2183.1,3.3365008]
[1746746667796,4.58030428,2183.3,2183.1,3.3365008]
[1746746668804,4.58007094,2183.4,2183.1,3.3365008]
[1746746668956,4.58007094,2183.4,2183.2,0.779]
[1746746669155,4.5798747,2183.5,2183.2,4.20763629]
[1746746669355,4.5798747,2183.5,2183.2,10.31763629]
[1746746669599,4.57967474,2183.6,2183.2,10.31763629]
[1746746669800,4.57969087,2183.6,2183.3,6.15579731]